bitfinex/quotes_ETHUSD_20240915
["timestamp","ask_amount","ask_price","bid_price","bid_amount"]
[1726431083680,0.1313418,2369.6,2369.3,7.128683]
[1726431084056,4.21985,2369.8,2369.3,7.128683]
[1726431084567,0.13135062,2369.7,2369.3,7.128683]
[1726431084878,4.21985,2369.8,2369.3,7.128683]
[1726431085060,0.13135062,2369.6,2369.3,7.128683]
[1726431085239,4.21985,2369.8,2369.3,7.128683]
[1726431085439,4.21985,2369.8,2369.4,1.1349413]
[1726431085640,0.13135062,2369.7,2369.4,1.1349413]
[1726431085976,4.21985,2369.8,2369.4,1.1349413]
[1726431086162,0.13135062,2369.6,2369.4,1.1349413]
[1726431086341,4.21985,2369.8,2369.4,1.1349413]
[1726431086537,0.13135062,2369.5,2369.4,1.1349413]
[1726431087136,4.21985,2369.8,2369.4,1.1349413]
[1726431087740,4.21985,2369.8,2369.3,7.128683]
[1726431088740,0.55,2369.9,2369.4,4.22046]
[1726431088944,4.76959,2369.9,2369.4,4.22046]
[1726431091265,0.13135062,2369.8,2369.4,4.22046]
[1726431091996,0.13135062,2369.8,2369.4,5.3553973]
[1726431096227,0.13135062,2369.8,2369.5,2.3907]
[1726431099262,4.35112062,2369.8,2369.5,2.3907]
[1726431099464,0.13135062,2369.8,2369.5,2.3907]
[1726431104074,4.21995,2369.7,2369.5,2.3907]
[1726431104430,0.13165051,2369.6,2369.5,2.3907]
[1726431104879,4.21979,2369.8,2369.5,2.3907]
[1726431105080,0.1316417,2369.6,2369.5,2.3907]
[1726431105265,4.21979,2369.8,2369.5,2.3907]
[1726431105778,0.1316417,2369.7,2369.5,2.3907]
[1726431106169,4.21979,2369.8,2369.5,2.3907]
[1726431106367,0.1316417,2369.6,2369.5,2.3907]
[1726431106572,4.21979,2369.8,2369.5,2.3907]
[1726431107252,0.1316417,2369.7,2369.5,2.3907]
[1726431107577,4.21979,2369.8,2369.5,2.3907]
[1726431107876,0.1316417,2369.6,2369.5,2.3907]
[1726431108076,4.21979,2369.8,2369.5,2.3907]
[1726431108299,0.1316417,2369.6,2369.5,2.3907]
[1726431108783,4.21979,2369.8,2369.5,2.3907]
[1726431108940,0.1316417,2369.6,2369.5,2.3907]
[1726431109141,4.21998,2369.7,2369.5,2.3907]
[1726431109353,0.1316417,2369.6,2369.5,2.3907]
[1726431111286,4.21981,2369.8,2369.5,2.3907]
[1726431111481,0.1316417,2369.6,2369.5,2.3907]
[1726431111693,4.21981,2369.8,2369.5,2.3907]
[1726431111856,0.1316417,2369.6,2369.5,2.3907]
[1726431112056,4.21981,2369.8,2369.5,2.3907]
[1726431112294,0.1316417,2369.6,2369.5,2.3907]
[1726431112482,4.21981,2369.8,2369.5,2.3907]
[1726431112683,0.1316417,2369.6,2369.5,2.3907]
[1726431112895,4.21981,2369.8,2369.5,2.3907]
[1726431113146,0.1316417,2369.6,2369.5,2.3907]
[1726431113567,4.21981,2369.8,2369.5,2.3907]
[1726431113761,0.1316417,2369.6,2369.5,2.3907]
[1726431113970,4.21981,2369.8,2369.5,2.3907]
[1726431114295,0.1316417,2369.6,2369.5,2.3907]
[1726431114499,4.21981,2369.8,2369.5,2.3907]
[1726431114703,0.1316417,2369.6,2369.5,2.3907]
[1726431114874,4.21981,2369.8,2369.5,2.3907]
[1726431115076,0.1316417,2369.6,2369.5,2.3907]
[1726431115578,4.21981,2369.8,2369.5,2.3907]
[1726431115775,0.1316417,2369.6,2369.5,2.3907]
[1726431115985,4.21981,2369.8,2369.5,2.3907]
[1726431116182,0.1278117,2369.6,2369.5,2.3907]
[1726431116375,4.21981,2369.8,2369.5,2.3907]
[1726431116604,0.1278117,2369.6,2369.5,2.3907]
[1726431116800,4.21981,2369.8,2369.5,2.3907]
[1726431117044,0.1278117,2369.6,2369.5,2.3907]
[1726431117190,4.21981,2369.8,2369.5,2.3907]
[1726431117385,0.1278117,2369.6,2369.5,2.3907]
[1726431117622,4.21981,2369.8,2369.5,2.3907]
[1726431117830,0.12654158,2369.6,2369.5,2.3907]
[1726431118005,4.21981,2369.8,2369.5,2.3907]
[1726431118208,0.12654158,2369.6,2369.5,2.3907]
[1726431118408,4.21981,2369.8,2369.5,2.3907]
[1726431118587,0.12654158,2369.6,2369.5,2.3907]
[1726431118929,4.21981,2369.8,2369.5,2.3907]
[1726431119302,0.12654158,2369.7,2369.5,2.3907]
[1726431119623,4.21981,2369.8,2369.5,2.3907]
[1726431119924,0.12654158,2369.6,2369.5,2.3907]
[1726431120088,4.21981,2369.8,2369.5,2.3907]
[1726431120656,0.12654158,2369.7,2369.5,2.3907]
[1726431121128,4.21981,2369.8,2369.5,2.3907]
[1726431121340,0.12654599,2369.6,2369.5,2.3907]
[1726431122002,4.21981,2369.8,2369.5,2.3907]
[1726431122201,0.12654599,2369.6,2369.5,2.3907]
[1726431122396,4.21981,2369.8,2369.5,2.3907]
[1726431122601,0.12654599,2369.6,2369.5,2.3907]
[1726431122819,4.21981,2369.8,2369.5,2.3907]
[1726431123017,0.12654599,2369.6,2369.5,2.3907]
[1726431123220,4.21981,2369.8,2369.5,2.3907]
[1726431123403,0.12654599,2369.6,2369.5,2.3907]
[1726431123618,4.21981,2369.8,2369.5,2.3907]
[1726431123916,0.12654599,2369.6,2369.5,2.3907]
[1726431124441,4.21981,2369.8,2369.5,2.3907]
[1726431125008,0.12654599,2369.7,2369.5,2.3907]
[1726431125204,0.12654599,2369.7,2369.5,2.62977]
[1726431125435,4.21953,2370.0,2369.5,2.62977]
[1726431125604,0.12653275,2369.6,2369.5,2.3907]
[1726431125811,4.21953,2370.0,2369.5,2.3907]
[1726431126023,0.12655924,2369.6,2369.5,2.3907]
[1726431126324,0.55,2369.5,2369.4,0.88286545]
[1726431126524,4.34667924,2369.6,2369.1,0.88286545]
[1726431126525,0.55,2369.3,2369.1,0.88286545]
[1726431126702,0.12655924,2369.2,2369.1,0.88286545]
[1726431127050,0.55,2369.3,2369.0,3.32416545]
[1726431127346,0.12653275,2369.2,2369.1,0.88286545]
[1726431127653,0.12653275,2369.2,2369.0,4.29944736]
[1726431127654,0.55,2369.2,2369.0,4.29944736]
[1726431127822,0.67653275,2369.2,2369.0,4.29944736]
[1726431128644,2.52681277,2369.2,2368.9,0.88286545]
[1726431128854,0.55,2369.1,2368.8,3.32416545]
[1726431129505,0.55,2369.1,2368.8,2.4413]
[1726431129705,0.55,2369.1,2368.8,3.32416545]
[1726431129933,0.55,2369.1,2368.8,2.4413]
[1726431131354,6.07085002,2369.4,2368.8,3.32832536]
[1726431131504,0.55,2369.3,2368.9,2.3885]
[1726431131704,0.55,2369.1,2368.9,2.3885]
[1726431132522,0.55,2369.1,2368.7,5.10458545]
[1726431132876,0.55,2369.1,2368.7,3.63013545]
[1726431133176,0.1262811,2369.0,2368.7,3.63013545]
[1726431133524,0.55,2369.1,2368.7,4.5130009]
[1726431133726,0.1262811,2369.0,2368.7,4.5130009]
[1726431133965,0.1262811,2369.0,2368.7,7.85184545]
[1726431134168,0.1262811,2369.0,2368.8,1.29564509]
[1726431134626,0.55,2369.1,2368.8,1.29564509]
[1726431135279,0.55,2369.1,2368.9,2.3279]
[1726431136173,0.12626785,2369.0,2368.9,2.3279]
[1726431140285,0.12626785,2369.0,2368.9,3.20071205]
[1726431141781,0.12626785,2369.0,2368.9,2.3279]
[1726431142394,0.12626785,2369.0,2368.9,6.54926]
[1726431142558,4.22057,2369.4,2368.9,6.54926]
[1726431142755,0.67615745,2369.3,2368.9,6.54926]
[1726431146142,0.67615745,2369.3,2368.9,2.3279]
[1726431147344,0.67615745,2369.3,2368.9,3.404976]
[1726431148782,0.67615745,2369.3,2369.0,2.3279]
[1726431150382,0.12615745,2369.3,2369.0,6.54899]
[1726431150550,0.12615745,2369.3,2369.0,10.77008]
[1726431150750,4.22023,2369.6,2369.1,5.4057156]
[1726431151066,0.55,2369.4,2369.1,5.4057156]
[1726431151583,0.55,2369.5,2369.1,5.4057156]
[1726431152050,0.12155514,2369.4,2369.1,1.1847156]
[1726431152991,0.12155514,2369.4,2369.3,8.47253002]
[1726431153217,7.37,2369.8,2369.3,11.47253002]
[1726431153352,0.12156839,2369.4,2369.3,9.62216]
[1726431153703,8.43904,2370.0,2369.4,4.22045]
[1726431153857,4.21949,2370.0,2369.4,4.22045]
[1726431154062,4.21949,2370.0,2369.4,8.4409]
[1726431154063,0.12156839,2369.9,2369.4,8.4409]
[1726431154246,0.12156839,2369.9,2369.4,5.182545]
[1726431154482,0.55,2369.8,2369.4,9.402905]
[1726431154649,0.55,2369.8,2369.4,9.402925]
[1726431154967,0.55,2369.9,2369.5,1.4804525]
[1726431155283,0.12156839,2369.8,2369.4,4.22034]
[1726431156649,0.12156839,2369.8,2369.4,8.44072]
[1726431156851,0.12156839,2369.8,2369.4,4.22034]
[1726431157064,0.12156839,2369.8,2369.5,0.962194]
[1726431160111,0.12156839,2369.8,2369.6,2.4964]
[1726431163890,0.12156839,2369.8,2369.6,1.85028002]
[1726431164087,7.37,2370.2,2369.6,1.85028002]
[1726431164088,4.21924,2370.1,2369.8,2.4964]
[1726431164292,4.21951,2370.0,2369.6,5.4964]
[1726431164894,6.06952002,2370.1,2369.6,2.4964]
[1726431165094,4.21943,2370.0,2369.6,2.4964]
[1726431165387,4.76943,2370.0,2369.6,2.4964]
[1726431166001,0.1137432,2369.9,2369.6,2.4964]
[1726431167300,0.1137432,2369.9,2369.6,3.6863224]
[1726431169553,0.1137432,2369.9,2369.7,2.3245]
[1726431169852,4.219,2370.3,2369.7,2.3245]
[1726431170062,4.25782,2370.5,2370.0,2.3245]
[1726431170063,0.03928,2370.5,2370.0,2.3245]
[1726431170201,0.03928,2370.5,2369.9,6.06971002]
[1726431170202,0.03928,2370.5,2370.1,4.21913]
[1726431170399,0.03928,2370.5,2370.3,2.3245]
[1726431171236,4.2578,2370.5,2370.3,2.3245]
[1726431172598,8.47645,2370.5,2370.3,2.3245]
[1726431172803,4.21869,2370.4,2370.3,2.3245]
[1726431173763,4.2578,2370.5,2370.3,2.3245]
[1726431174906,4.2578,2370.5,2370.3,2.55695]
[1726431174907,0.03928,2370.5,2370.3,2.55695]
[1726431177307,0.03928,2370.5,2370.3,6.77579]
[1726431177525,0.03928,2370.5,2370.3,2.55695]
[1726431177877,0.10973993,2370.4,2370.3,2.55695]
[1726431179482,0.10973993,2370.4,2370.3,0.23245]
[1726431181175,0.10973993,2370.4,2370.3,0.31681661]
[1726431181404,0.10973993,2370.4,2370.3,2.63541661]
[1726431181709,0.10973993,2370.4,2370.3,2.55105]
[1726431181914,0.10973993,2370.4,2370.3,2.635413]
[1726431182312,0.10973993,2370.4,2370.3,6.854283]
[1726431185323,0.10973993,2370.4,2370.3,8.70456302]
[1726431185496,4.21769,2371.0,2370.3,4.48569302]
[1726431185695,0.03928,2371.3,2371.0,2.3186]
[1726431186131,0.03928,2371.3,2370.6,4.21824]
[1726431186132,0.03928,2371.3,2370.8,2.3186]
[1726431187335,0.03928,2371.3,2370.9,4.21773]
[1726431187494,0.03928,2371.3,2371.1,2.3186]
[1726431191919,0.55,2371.2,2371.1,2.3186]
[1726431192528,0.03928,2371.3,2371.1,6.53593]
[1726431192976,0.03928,2371.3,2371.1,10.75327]
[1726431193273,0.58928,2371.3,2371.2,1.075327]
[1726431195141,0.58928,2371.3,2371.2,5.292597]
[1726431195580,0.03928,2371.3,2371.2,5.292597]
[1726431195779,0.03928,2371.3,2371.2,7.712797]
[1726431195949,0.03928,2371.3,2371.2,7.79712536]
[1726431196146,0.14092012,2371.3,2371.2,7.79712536]
[1726431196334,0.03928,2371.3,2371.2,7.712797]
[1726431196534,0.14092012,2371.3,2371.2,7.712797]
[1726431196735,0.03928,2371.3,2371.2,7.712797]
[1726431196980,0.14092012,2371.3,2371.2,7.712797]
[1726431197134,0.03928,2371.3,2371.2,7.79712478]
[1726431197330,0.69092012,2371.3,2371.2,3.495527]
[1726431197534,0.58928,2371.3,2371.2,3.495527]
[1726431197760,0.69092012,2371.3,2371.2,2.4202]
[1726431198150,0.55,2371.2,2370.9,4.21771]
[1726431198379,0.55,2371.2,2371.0,0.421771]
[1726431198554,0.10198981,2371.1,2371.0,0.421771]
[1726431198873,0.55,2371.2,2371.0,0.421771]
[1726431199236,0.10198981,2371.1,2371.0,0.421771]
[1726431199580,0.55,2371.2,2371.0,0.421771]
[1726431199880,0.10198981,2371.1,2371.0,0.421771]
[1726431200283,0.55,2371.2,2371.0,0.421771]
[1726431200447,0.09855599,2371.1,2371.0,0.421771]
[1726431201372,0.64855599,2371.1,2371.0,0.421771]
[1726431202178,0.64855599,2371.1,2370.9,2.4202]
[1726431202336,0.62490374,2371.0,2370.4,2.4202]
[1726431202536,0.55,2370.8,2370.4,2.4202]
[1726431202837,0.55,2370.8,2370.5,0.687142]
[1726431203038,0.55,2370.6,2370.5,0.687142]
[1726431203434,0.55,2370.8,2370.5,0.687142]
[1726431203770,0.55,2370.8,2370.6,0.3107342]
[1726431207271,4.76798,2370.8,2370.6,0.3107342]
[1726431207616,0.55,2370.8,2370.6,0.3107342]
[1726431211105,0.64699829,2370.7,2370.6,0.3107342]
[1726431212208,11.62642,2371.3,2370.6,2.7681342]
[1726431212379,0.03928,2371.3,2370.9,4.21776]
[1726431212581,0.03928,2371.3,2371.0,2.4574]
[1726431212811,0.09335556,2371.2,2371.0,2.4574]
[1726431213006,0.09335556,2371.2,2371.1,0.66751]
[1726431213217,0.03928,2371.3,2371.1,0.66751]
[1726431213592,0.03928,2371.3,2371.2,4.21727]
[1726431213928,0.0293444,2371.3,2371.2,4.21727]
[1726431214220,0.0293444,2371.3,2371.2,6.67467]
[1726431214682,0.0293444,2371.3,2371.2,2.4574]
[1726431215204,0.0293444,2371.3,2371.2,13.976264]
[1726431215409,0.03928,2372.0,2371.8,6.50669]
[1726431215614,0.03928,2372.0,2371.9,0.0843077]
[1726431216087,0.03928,2372.0,2371.9,4.3003277]
[1726431216284,0.03928,2372.0,2371.9,4.21602]
[1726431216615,0.03928,2372.0,2371.9,13.32628692]
[1726431216782,0.03928,2372.0,2371.9,7.21602]
[1726431218324,0.03928,2372.0,2371.9,3.0]
[1726431218795,4.25389,2372.7,2372.1,2.2905]
[1726431218796,0.03928,2372.7,2372.1,2.2905]
[1726431219118,4.00338922,2372.6,2372.2,3.57699027]
[1726431219294,4.00338922,2372.6,2372.1,5.2905]
[1726431219500,4.00338922,2372.6,2372.3,3.0]
[1726431219691,4.00338922,2372.6,2372.4,0.721549]
[1726431219895,0.03928,2372.7,2372.4,0.721549]
[1726431220127,0.08457142,2372.5,2372.4,3.012049]
[1726431220331,0.03928,2372.7,2372.4,3.012049]
[1726431220479,0.03928,2372.7,2372.5,0.3012049]
[1726431220882,0.03928,2372.7,2372.4,0.721549]
[1726431221190,0.55,2372.5,2372.2,2.2905]
[1726431221499,0.55,2372.5,2372.0,5.2905]
[1726431221500,4.00338922,2372.4,2372.0,5.2905]
[1726431221826,4.00338922,2372.4,2372.1,0.65405]
[1726431221827,0.55,2372.3,2372.1,0.65405]
[1726431222485,4.00338922,2372.4,2371.7,2.2905]
[1726431222486,0.55,2372.1,2371.7,2.2905]
[1726431223110,4.2152,2372.4,2371.7,2.2905]
[1726431223111,4.00338922,2371.9,2371.7,2.2905]
[1726431223314,4.00338922,2371.9,2371.8,0.64805]
[1726431223545,4.00338922,2371.9,2371.7,2.2905]
[1726431224912,4.00338922,2372.1,2371.7,2.2905]
[1726431225229,0.55,2372.3,2371.7,2.2905]
[1726431225230,0.55,2372.2,2371.7,2.2905]
[1726431225432,4.00338922,2372.1,2371.8,2.51955]
[1726431225633,4.00338922,2372.1,2371.8,2.2905]
[1726431226135,0.08462464,2372.0,2371.8,2.2905]
[1726431226490,4.21489,2372.6,2371.8,2.2905]
[1726431226491,4.00338922,2372.6,2371.8,2.2905]
[1726431226688,0.55,2372.5,2371.9,0.52905]
[1726431226941,0.55,2372.5,2371.7,3.0]
[1726431226942,0.08462464,2371.9,2371.8,2.2905]
[1726431227086,0.55,2372.5,2371.9,2.2905]
[1726431228195,4.00338922,2372.6,2371.9,2.2905]
[1726431228519,4.04266922,2372.7,2371.9,2.2905]
[1726431228702,0.03928,2372.7,2371.9,2.2905]
[1726431229037,0.03928,2372.7,2372.2,2.2905]
[1726431229331,0.03928,2372.7,2372.0,5.2905]
[1726431229541,0.03928,2372.7,2372.2,5.4704]
[1726431229686,0.03928,2372.7,2372.4,5.4704]
[1726431234513,0.03928,2372.7,2372.4,5.4682]
[1726431234949,0.03928,2372.7,2372.5,2.4682]
[1726431235328,0.03928,2372.7,2372.5,5.4682]
[1726431235725,0.03928,2372.7,2372.5,2.4682]
[1726431235954,0.03928,2372.7,2372.6,3.01502]
[1726431236153,0.03928,2372.7,2372.6,2.4682]
[1726431238121,0.03928,2373.4,2372.6,2.4682]
[1726431238361,0.03928,2373.4,2372.8,2.4682]
[1726431238863,0.03928,2373.4,2372.9,5.4682]
[1726431239069,0.03928,2373.4,2373.1,2.4682]
[1726431240330,4.04266922,2373.4,2373.1,2.4682]
[1726431241228,0.08259405,2373.3,2373.1,2.4682]
[1726431244326,4.55338922,2373.2,2372.7,2.4682]
[1726431244567,4.55338922,2373.2,2372.8,3.24682]
[1726431244772,0.08259405,2373.1,2372.8,0.24682]
[1726431246337,0.08259405,2373.1,2372.8,3.24682]
[1726431246538,0.08259405,2373.1,2372.9,0.571502]
[1726431251150,0.08259405,2373.1,2373.0,5.4623]
[1726431251376,0.63259405,2373.1,2373.0,5.4623]
[1726431257389,0.03928,2373.4,2373.0,5.4623]
[1726431257587,0.08001862,2373.1,2373.0,5.4623]
[1726431257774,0.55,2373.3,2373.0,6.0656802]
[1726431258081,0.08001862,2373.1,2373.0,6.0656802]
[1726431258286,0.03928,2373.4,2373.1,5.2801]
[1726431258718,0.03928,2373.4,2373.2,2.2801]
[1726431258875,0.03928,2373.4,2373.3,0.22801]
[1726431259382,0.58928,2373.4,2373.3,0.22801]
[1726431260290,0.58928,2373.4,2373.3,3.22801]
[1726431261140,0.58928,2373.4,2373.3,5.50811]
[1726431262516,0.58928,2373.4,2373.3,0.22801]
[1726431262821,0.55,2373.3,2373.1,5.2801]
[1726431264080,0.63027624,2373.2,2373.1,5.2801]
[1726431264276,0.63027624,2373.2,2373.1,6.14631458]
[1726431267285,0.63027624,2373.2,2373.1,0.86621458]
[1726431267626,0.55,2373.1,2373.0,0.6033802]
[1726431267826,0.08027624,2373.2,2373.0,0.6033802]
[1726431267827,0.63027624,2373.2,2373.1,3.0]
[1726431267996,0.55,2373.2,2373.1,3.73378477]
[1726431268199,0.63027624,2373.2,2373.1,3.73378477]
[1726431269487,0.55,2373.1,2372.7,3.18046545]
[1726431269794,0.55,2373.1,2372.5,3.57101461]
[1726431269994,0.55,2372.9,2372.6,1.97411115]
[1726431270235,0.08016519,2372.8,2372.6,1.97411115]
[1726431270400,0.63016519,2372.8,2372.7,0.42717112]
[1726431270736,0.55,2372.7,2372.5,2.2976]
[1726431270892,0.55,2372.7,2372.6,4.15638379]
[1726431274126,0.20625,2372.7,2372.6,5.03924924]
[1726431274460,4.00338922,2373.3,2372.6,5.03924924]
[1726431274822,0.08016519,2373.2,2372.6,5.03924924]
[1726431275051,0.08016519,2373.2,2372.7,0.90517276]
[1726431275560,0.08016519,2373.2,2372.8,2.3158]
[1726431275859,8.21696922,2373.3,2372.7,4.78803821]
[1726431276157,8.21696922,2373.3,2372.6,0.88286545]
[1726431276158,4.00338922,2373.1,2372.6,0.88286545]
[1726431276358,0.62965429,2373.0,2372.6,0.88286545]
[1726431276573,0.62965429,2373.0,2372.6,2.51255738]
[1726431276713,0.62965429,2373.0,2372.7,3.0]
[1726431278861,0.62965429,2373.0,2372.6,4.62969193]
[1726431279042,0.62965429,2373.0,2372.6,5.51255738]
[1726431280074,0.62965429,2373.0,2372.6,5.9031402]
[1726431280247,0.62965429,2373.0,2372.6,3.88286545]
[1726431280575,0.62965429,2373.0,2372.5,4.27345074]
[1726431280759,0.62965429,2373.0,2372.5,5.59774892]
[1726431280931,0.62965429,2373.0,2372.5,4.27345074]
[1726431281234,0.62965429,2373.0,2372.5,4.66405024]
[1726431281664,0.62965429,2373.0,2372.5,4.27346898]
[1726431282128,0.62965429,2373.0,2372.5,3.88286545]
[1726431283826,4.00338922,2372.7,2372.4,1.27348337]
[1726431284031,0.55,2372.6,2372.3,1.27349039]
[1726431284227,0.55,2372.6,2372.4,0.25977886]
[1726431284228,0.62958318,2372.6,2372.4,0.25977886]
[1726431284451,0.62958318,2372.6,2372.2,0.88286545]
[1726431284742,0.62958318,2372.6,2372.2,1.27349645]
[1726431284947,0.62958318,2372.6,2372.3,0.49135946]
[1726431288051,0.62958318,2372.6,2372.4,5.3158]
[1726431288492,0.62958318,2372.6,2372.4,5.4000851]
[1726431288791,0.55,2372.6,2372.4,5.4000851]
[1726431288991,0.62929427,2372.5,2372.4,5.4000851]
[1726431289190,0.62929427,2372.5,2372.4,6.16472392]
[1726431289697,0.62929427,2372.5,2372.4,7.04758937]
[1726431289895,0.62929427,2372.5,2372.4,6.16472392]
[1726431290071,0.62929427,2372.5,2372.4,7.04758937]
[1726431290272,0.62929427,2372.5,2372.4,6.16472392]
[1726431290653,0.62929427,2372.5,2372.4,7.04758937]
[1726431290861,0.62929427,2372.5,2372.4,6.16472392]
[1726431293174,0.62929427,2372.5,2372.4,0.84892392]
[1726431294016,0.07929427,2372.5,2372.4,6.12052392]
[1726431294242,7.37,2373.1,2372.5,3.0]
[1726431294394,4.21364,2373.3,2372.5,4.04947488]
[1726431294941,4.21364,2373.3,2372.5,4.83781043]
[1726431295233,0.55,2373.2,2372.5,4.04947488]
[1726431295389,0.55,2373.2,2372.6,0.72039403]
[1726431295889,4.76374,2373.2,2372.6,0.72039403]
[1726431296091,4.00338922,2373.1,2372.6,0.72039403]
[1726431296397,0.55,2373.0,2372.6,0.72039403]
[1726431297128,0.55,2372.8,2372.4,5.2716]
[1726431300916,0.55,2372.9,2372.4,5.2716]
[1726431301117,0.55,2372.6,2372.5,3.66458249]
[1726431301543,0.07868249,2372.6,2372.5,3.66458249]
[1726431301749,7.40928,2373.4,2372.6,5.2716]
[1726431301982,0.03928,2373.4,2372.8,3.0]
[1726431302182,0.07347633,2373.3,2372.8,3.0]
[1726431302482,0.07347633,2373.3,2372.9,0.61546725]
[1726431303065,0.07347633,2373.3,2373.0,2.2716]
[1726431303670,0.07347633,2373.3,2373.0,5.2716]
[1726431303871,0.07347633,2373.3,2373.0,2.2716]
[1726431304600,0.55,2373.2,2373.0,2.2716]
[1726431305117,0.62370798,2373.1,2373.0,2.2716]
[1726431305289,0.62370798,2373.1,2373.0,5.88706725]
[1726431305589,0.62370798,2373.1,2373.0,0.61546725]
[1726431305781,0.55,2373.0,2372.7,3.88307251]
[1726431305979,4.00338922,2372.9,2372.6,0.39054541]
[1726431306152,4.00338922,2372.9,2372.6,1.29244092]
[1726431306153,0.55,2372.8,2372.6,1.29244092]
[1726431306485,0.55,2372.6,2372.5,0.66458249]
[1726431306686,0.55,2372.6,2372.4,3.15467251]
[1726431307191,0.55,2372.6,2372.5,3.88307251]
[1726431307486,0.55,2372.6,2372.5,3.0]
[1726431308305,0.55,2372.6,2372.5,3.88307251]
[1726431308464,0.55,2372.6,2372.5,3.83307251]
[1726431311395,0.55,2372.6,2372.5,4.81854617]
[1726431312307,0.55,2372.6,2372.5,5.70120456]
[1726431312639,7.40928,2373.4,2372.6,2.3245]
[1726431312837,0.07347188,2373.3,2372.9,2.3245]
[1726431313239,0.07347188,2373.3,2373.0,0.88432578]
[1726431314955,0.55,2373.2,2373.0,0.88432578]
[1726431315447,0.62356545,2373.1,2373.0,0.88432578]
[1726431317166,0.55,2373.0,2372.8,3.88432578]
[1726431317333,0.55,2373.0,2372.6,0.88432578]
[1726431317334,0.55,2372.8,2372.6,0.88432578]
[1726431317529,0.55,2372.8,2372.5,1.56620625]
[1726431317530,0.55,2372.6,2372.5,1.56620625]
[1726431317844,0.03928,2373.4,2372.6,2.5055532]
[1726431318026,0.03928,2373.4,2373.2,3.1448736]
[1726431318214,0.03928,2373.4,2373.3,0.8843736]
[1726431318414,0.03928,2373.4,2373.3,0.88390957]
[1726431318869,0.03928,2373.4,2373.3,3.88390957]
[1726431319168,0.03928,2373.4,2373.3,0.92397172]
[1726431320142,0.58928,2373.4,2373.3,0.92397172]
[1726431320344,0.03928,2373.4,2373.3,0.92397172]
[1726431322666,0.55,2373.3,2373.1,3.0]
[1726431324848,0.55,2373.3,2373.0,5.2605]
[1726431325074,0.55,2373.3,2373.1,3.61444096]
[1726431325441,0.06180658,2373.2,2373.1,3.61444096]
[1726431325641,0.55,2373.3,2373.1,3.61444096]
[1726431325878,0.06180658,2373.2,2373.1,3.61444096]
[1726431326280,0.55,2373.3,2373.1,3.61444096]
[1726431326651,0.06180658,2373.2,2373.1,3.61444096]
[1726431326866,0.55,2373.3,2373.1,3.61444096]
[1726431327076,0.06180658,2373.2,2373.1,3.61444096]
[1726431327445,0.55,2373.3,2373.1,3.61444096]
[1726431327663,0.06180658,2373.2,2373.1,3.61444096]
[1726431327867,0.55,2373.3,2373.1,3.61444096]
[1726431328054,0.61180658,2373.2,2373.1,3.61444096]
[1726431328258,0.61180658,2373.2,2373.0,5.2605]
[1726431328475,0.55,2373.1,2373.0,5.2605]
[1726431328902,0.55,2373.3,2373.0,5.2605]
[1726431329269,0.06180658,2373.2,2373.0,6.007597]
[1726431329592,0.03928,2373.4,2373.0,6.007597]
[1726431329593,0.55,2373.1,2373.0,6.007597]
[1726431329795,0.55,2373.3,2373.0,6.007597]
[1726431330156,0.55,2373.1,2373.0,6.007597]
[1726431330695,0.55,2373.3,2373.0,6.007597]
[1726431331085,0.55,2373.1,2373.0,6.007597]
[1726431331249,0.55,2373.1,2373.0,5.2605]
[1726431331795,0.55,2373.3,2373.0,6.14440957]
[1726431332103,0.6478928,2373.1,2373.0,6.007597]
[1726431332283,0.55,2373.1,2373.0,6.007597]
[1726431332587,0.55,2373.3,2373.0,6.007597]
[1726431332775,0.0978928,2373.1,2373.0,6.007597]
[1726431332982,0.55,2373.1,2373.0,6.007597]
[1726431333307,0.55,2373.3,2373.0,6.89150657]
[1726431333606,0.03928,2373.4,2373.3,3.0]
[1726431333755,0.03928,2373.4,2373.3,3.88390957]
[1726431334260,0.03928,2373.4,2373.3,5.4907]
[1726431334588,0.03928,2373.4,2373.3,8.61041516]
[1726431335236,0.03928,2373.4,2373.3,9.05260196]
[1726431335508,0.03928,2373.4,2373.3,8.60743256]
[1726431336063,0.03928,2373.4,2373.3,8.16628184]
[1726431336308,0.03928,2373.4,2373.3,8.16631371]
[1726431336483,0.03928,2373.4,2373.3,6.86085475]
[1726431336875,0.03928,2373.4,2373.3,7.74331371]
[1726431337408,0.03928,2373.4,2373.3,7.74321415]
[1726431341816,0.03928,2373.4,2373.3,6.86085475]
[1726431342024,0.03928,2373.4,2373.3,8.18443256]
[1726431342204,0.03928,2373.4,2373.3,6.86085475]
[1726431342387,0.03928,2373.4,2373.3,7.7430414]
[1726431343085,0.03928,2373.4,2373.3,8.18443256]
[1726431343614,0.03928,2373.4,2373.3,6.86085475]
[1726431343820,0.03928,2373.4,2373.3,8.18443256]
[1726431344195,0.03928,2373.4,2373.3,6.86085475]
[1726431344399,0.03928,2373.4,2373.3,7.74311289]
[1726431345036,0.03928,2373.4,2373.3,7.7431076]
[1726431345218,0.03928,2373.4,2373.3,8.18443256]
[1726431345723,0.03928,2373.4,2373.3,5.25245477]
[1726431346218,0.03928,2373.4,2373.3,2.25245477]
[1726431346420,0.13109652,2373.4,2373.3,2.25245477]
[1726431346589,0.03928,2373.4,2373.3,2.25245477]
[1726431347212,0.13109652,2373.4,2373.3,2.25245477]
[1726431347522,0.13109652,2373.4,2373.3,1.37015475]
[1726431348100,0.13109652,2373.4,2373.3,2.25255952]
[1726431349326,0.13109652,2373.4,2373.3,5.69373256]
[1726431349496,0.13109652,2373.4,2373.1,4.83419787]
[1726431349497,0.13109652,2373.4,2373.2,4.32357781]
[1726431349685,0.13109652,2373.4,2373.3,0.88237613]
[1726431353416,0.13109652,2373.4,2373.3,0.88258677]
[1726431353754,0.13109652,2373.4,2373.3,4.88663517]
[1726431354390,0.13109652,2373.4,2373.3,2.32761406]
[1726431355404,0.13109652,2373.4,2373.3,7.62431406]
[1726431357812,0.13109652,2373.4,2373.3,6.30073625]
[1726431358011,0.13109652,2373.4,2373.3,7.62579582]